bitfinex-derivatives/quotes_SOLF0:USTF0_20251107
["timestamp","ask_amount","ask_price","bid_price","bid_amount"]
[1762514224129,3.14,152.2,152.09,3.11]
[1762514224326,3.14,152.25,152.09,3.11]
[1762514224528,1.14373983,152.28,152.15,3.11]
[1762514224729,9.0531,152.29,152.15,3.11]
[1762514224926,3.14,152.29,152.15,9.0281]
[1762514225122,0.04779168,152.24,152.2,0.04634311]
[1762514225329,0.04779168,152.24,152.2,3.15634311]
[1762514225534,3.14,152.34,152.23,5.9151]
[1762514225720,3.14,152.34,152.23,71.0251]
[1762514225924,3.14,152.34,152.23,65.11]
[1762514226121,3.14,152.33,152.14,3.11]
[1762514226321,3.14,152.31,152.14,3.11]
[1762514226531,1.14296975,152.32,152.21,0.04967928]
[1762514226532,3.18905908,152.24,152.21,0.04967928]
[1762514226828,0.0485103,152.24,152.21,0.04828628]
[1762514227530,0.0485103,152.24,152.21,4.47828628]
[1762514227833,3.14,152.34,152.22,4.43]
[1762514228135,3.14,152.34,152.22,3.11]
[1762514228434,3.14,152.32,152.17,3.11]
[1762514228730,0.04191923,152.26,152.23,0.04466004]
[1762514229824,0.04191923,152.26,152.23,3.15466004]
[1762514230129,3.14,152.32,152.24,5.915]
[1762514230335,3.14,152.38,152.23,3.11]
[1762514230522,3.14,152.35,152.23,3.11]
[1762514230724,3.14,152.35,152.18,65.11]
[1762514231030,3.14,152.35,152.18,9.0272]
[1762514231031,5.9129,152.3,152.18,9.0272]
[1762514231228,0.04723829,152.26,152.22,0.04501177]
[1762514231928,0.04723829,152.26,152.22,3.15501177]
[1762514232134,3.14,152.37,152.22,4.47501177]
[1762514232329,3.14,152.37,152.22,3.11]
[1762514232536,9.0503,152.37,152.25,5.9143]
[1762514232740,3.14,152.37,152.22,3.11]
[1762514233034,3.14,152.37,152.29,5.9128]
[1762514233237,0.04387247,152.35,152.31,0.04292975]
[1762514233534,0.04717868,152.35,152.31,3.15656219]
[1762514233839,0.04717868,152.35,152.31,9.06856219]
[1762514234139,0.04717868,152.35,152.33,9.1015]
[1762514234338,0.04717868,152.35,152.31,0.04656219]
[1762514235040,0.04717868,152.35,152.31,3.23656219]
[1762514235339,3.19717868,152.35,152.31,0.04656219]
[1762514236039,1.32,152.34,152.21,3.19]
[1762514236236,3.15,152.33,152.16,3.19]
[1762514236436,3.15,152.33,152.15,18.48988181]
[1762514236437,3.15,152.33,152.2,3.19]
[1762514237034,3.15,152.33,152.25,0.04597208]
[1762514237246,0.04284126,152.28,152.25,0.04597208]
[1762514237441,0.04284126,152.28,152.25,3.23597208]
[1762514237741,3.15,152.36,152.25,0.04597208]
[1762514237932,3.15,152.36,152.2,3.19]
[1762514238129,3.15,152.36,152.25,3.19]
[1762514238337,3.15,152.41,152.25,3.19]
[1762514238640,0.0476468,152.35,152.31,3.2337131]
[1762514238831,0.0476468,152.35,152.31,0.04361478]
[1762514239339,3.15,152.33,152.21,3.19]
[1762514239638,3.15,152.31,152.21,3.19]
[1762514239837,8.98172364,152.36,152.21,3.19]
[1762514240037,4.92583659,152.35,152.21,3.19]
[1762514240244,3.15,152.36,152.21,3.19]
[1762514240440,0.04245381,152.3,152.27,0.04238932]
[1762514240840,5.9133,152.29,152.27,0.04238932]
[1762514241038,3.15,152.28,152.18,5.917]
[1762514241234,3.15,152.28,152.17,3.19]
[1762514241845,3.15,152.33,152.17,3.19]
[1762514242036,0.05048366,152.27,152.23,0.04521453]
[1762514242239,0.05048366,152.27,152.23,0.04584704]
[1762514242440,3.20048366,152.27,152.23,0.04584704]
[1762514243646,3.13,152.25,152.23,0.04584704]
[1762514244346,4.93229154,152.24,152.23,0.04584704]
[1762514244646,3.13,152.25,152.23,0.04584704]
[1762514244850,8.06422473,152.24,152.12,88.43]
[1762514245046,3.13,152.24,152.15,5.9184]
[1762514245343,8.96172364,152.29,152.13,3.29]
[1762514245548,8.06719476,152.28,152.13,3.29]
[1762514245851,4.93719476,152.27,152.14,3.29]
[1762514246152,0.04869823,152.22,152.19,0.04868475]
[1762514247348,0.04869823,152.22,152.13,62.0]
[1762514247349,4.93717223,152.21,152.08,3.29]
[1762514247543,3.13,152.22,152.08,3.29]
[1762514247745,11.74816254,152.35,152.21,3.29]
[1762514247946,3.13,152.42,152.23,3.29]
[1762514248144,3.13,152.42,152.29,3.29]
[1762514248345,0.04428755,152.37,152.34,0.04944646]
[1762514248748,0.04428755,152.37,152.35,3.29]
[1762514248948,0.04428755,152.37,152.34,0.04944646]
[1762514251053,3.13,152.61,152.44,3.29]
[1762514251459,3.13,152.61,152.46,5.9063]
[1762514251755,3.13,152.59,152.46,5.9063]
[1762514251951,0.04346372,152.54,152.51,0.0460942]
[1762514252664,3.13,152.64,152.52,3.29]
[1762514252856,3.13,152.64,152.42,91.9002]
[1762514252857,3.13,152.64,152.46,3.29]
[1762514253054,3.13,152.62,152.46,3.29]
[1762514253259,1.1407218,152.68,152.46,3.29]
[1762514253260,8.09761688,152.61,152.47,3.29]
[1762514253460,4.96761688,152.6,152.48,62.0]
[1762514253757,0.04691191,152.56,152.52,0.04189733]
[1762514254157,3.17691191,152.56,152.52,0.04189733]
[1762514254662,3.13,152.54,152.52,0.04189733]
[1762514254861,9.40698151,152.53,152.42,5.9077]
[1762514255075,3.13,152.53,152.42,9.1977]
[1762514255271,3.13,152.58,152.44,5.9072]
[1762514255573,8.08588604,152.57,152.44,3.29]
[1762514255766,0.04414185,152.52,152.49,0.04500728]
[1762514256871,0.04414185,152.52,152.49,3.33500728]
[1762514257870,4.95407708,152.61,152.49,3.33500728]
[1762514258067,3.13,152.59,152.49,3.29]
[1762514258464,3.13,152.64,152.49,3.29]
[1762514258670,4.95286456,152.63,152.51,3.29]
[1762514258871,0.0448563,152.59,152.55,0.04801965]
[1762514259273,0.0448563,152.59,152.56,3.29]
[1762514259470,0.0448563,152.59,152.55,0.04801965]
[1762514260466,0.0448563,152.59,152.55,3.22801965]
[1762514260776,4.80595752,152.71,152.59,3.18]
[1762514260975,3.22,152.78,152.67,3.18]
[1762514261974,0.04534579,152.74,152.71,0.04605621]
[1762514264073,3.22,152.72,152.56,3.18]
[1762514264570,3.22,152.72,152.61,3.01]
[1762514264775,3.22,152.72,152.56,3.01]
[1762514264975,0.04631665,152.66,152.62,0.04336022]
[1762514265176,0.04631665,152.66,152.62,0.04884675]
[1762514265574,3.31631665,152.66,152.62,0.04884675]
[1762514265780,0.04631665,152.66,152.62,0.04884675]
[1762514266279,0.00026044,152.66,152.65,3.01]
[1762514266475,3.27,152.77,152.65,3.01]
[1762514266781,9.1645,152.77,152.65,3.01]
[1762514266978,3.27,152.77,152.65,3.01]
[1762514267579,3.31932439,152.73,152.69,0.04662277]
[1762514267780,3.31745491,152.73,152.69,0.04988654]
[1762514268076,3.27,152.71,152.6,3.01]
[1762514268472,4.7758973,152.79,152.55,10.55142839]
[1762514268473,9.1676,152.7,152.57,5.9021]
[1762514268879,3.27,152.7,152.57,5.9021]
[1762514269079,0.0468781,152.65,152.62,0.04487181]
[1762514269276,3.27,152.64,152.62,0.04195388]
[1762514269873,3.27,152.75,152.63,3.01]
[1762514270577,5.896,152.74,152.63,3.01]
[1762514270781,3.27,152.74,152.63,3.01]
[1762514270980,3.27,152.69,152.67,0.04432638]
[1762514271176,3.27,152.69,152.66,0.04209634]
[1762514271486,3.27,152.69,152.67,3.01]
[1762514271487,0.04214281,152.69,152.67,3.01]
[1762514272286,3.27,152.79,152.68,8.908]
[1762514272479,3.27,152.79,152.68,3.01]
[1762514272988,8.50671273,152.78,152.68,65.01]
[1762514273183,5.23671273,152.77,152.68,65.01]
[1762514273383,0.04799645,152.74,152.71,0.04177075]
[1762514273584,3.31799645,152.74,152.71,0.04177075]
[1762514273789,0.04799645,152.74,152.71,0.04177075]
[1762514274188,3.31799645,152.74,152.71,0.04177075]
[1762514275485,5.22913377,152.73,152.71,0.04177075]
[1762514275683,5.22913377,152.73,152.63,3.01]
[1762514275684,8.49977631,152.72,152.63,3.01]
[1762514275890,3.27,152.72,152.64,5.8992]
[1762514276287,3.27,152.78,152.65,3.01]
[1762514276593,0.04341694,152.73,152.7,0.04268233]
[1762514276887,0.04381805,152.73,152.7,0.04394011]
[1762514277483,0.04381805,152.73,152.7,3.05394011]
[1762514277886,73.86,152.89,152.7,3.05394011]
[1762514277887,5.8928,152.82,152.72,3.01]
[1762514278083,5.23143431,152.81,152.72,3.01]
[1762514278290,3.27,152.83,152.72,3.01]
[1762514278492,5.22914648,152.82,152.72,3.01]
[1762514278691,5.22914648,152.81,152.72,3.01]
[1762514278888,5.22858892,152.8,152.75,0.04325069]
[1762514279188,0.04903201,152.78,152.75,0.04325069]
[1762514280384,3.31903201,152.78,152.75,0.04325069]
[1762514280590,0.04903201,152.78,152.75,0.04325069]
[1762514281500,0.04903201,152.78,152.75,3.05325069]
[1762514281691,5.22461806,152.87,152.75,4.35325069]
[1762514281897,5.22461806,152.86,152.76,3.01]
[1762514282083,3.27,152.84,152.7,3.01]
[1762514282282,3.27,152.82,152.7,3.01]
[1762514282491,5.22461806,152.81,152.7,3.01]
[1762514282689,0.04734114,152.77,152.75,3.01]
[1762514282885,0.04727732,152.78,152.75,3.01]
[1762514283098,3.27,152.92,152.75,3.01]
[1762514283391,8.49693752,152.91,152.75,3.01]
[1762514283595,5.22693752,152.9,152.83,8.902]
[1762514283801,3.27,152.92,152.83,3.01]
[1762514284093,0.04379541,152.89,152.86,0.04452403]
[1762514285399,3.27,153.0,152.87,3.01]
[1762514285586,3.27,152.98,152.82,3.01]
[1762514285786,5.8881,152.94,152.82,3.01]
[1762514285995,5.22358342,152.93,152.82,3.01]
[1762514286192,3.27,152.96,152.82,3.01]
[1762514286385,3.27,152.96,152.87,0.04780333]
[1762514286386,0.04501471,152.91,152.87,0.04780333]
[1762514286997,0.04501471,152.91,152.87,3.05780333]
[1762514287688,0.04501471,152.91,152.9,8.8995]
[1762514287893,3.27,153.0,152.9,3.01]
[1762514288291,5.23495252,152.99,152.91,62.0]
[1762514288498,3.27,153.0,152.91,62.0]
[1762514288701,5.22887899,152.99,152.91,62.0]
[1762514288999,0.04610974,152.97,152.94,0.04508269]
[1762514289792,0.04610974,152.97,152.95,3.01]
[1762514290802,0.04610974,152.97,152.95,8.8972]
[1762514290992,0.04610974,152.97,152.96,3.01]
[1762514291501,3.27,153.06,152.96,8.897]
[1762514291707,3.27,153.04,152.91,3.01]
[1762514291892,3.27,153.02,152.91,3.01]
[1762514292092,8.51850567,153.01,152.91,3.01]
[1762514292300,5.24850567,153.0,152.94,0.04817263]
[1762514292502,8.51850567,152.99,152.94,0.04817263]
[1762514292701,5.24850567,152.98,152.95,0.04531243]
[1762514292901,5.24850567,152.97,152.95,0.04531243]
[1762514293098,5.24850567,152.96,152.95,0.04531243]
[1762514293400,3.27,153.04,152.94,0.04473671]
[1762514293599,8.53653163,153.03,152.92,5.8885]
[1762514293795,3.27,153.01,152.96,0.04527116]
[1762514293995,3.27,152.99,152.97,0.0420038]
[1762514294190,3.27,152.97,152.96,0.04836613]
[1762514294391,5.26653163,152.97,152.95,0.04153363]
[1762514294596,5.26653163,152.96,152.95,0.04153363]
[1762514294795,2.95,153.02,152.95,0.04153363]
[1762514294989,5.27031656,153.01,152.95,0.04153363]
[1762514295190,8.22031656,153.0,152.95,0.04153363]
[1762514295398,5.27031656,152.99,152.96,0.04686466]
[1762514295705,2.95,153.0,152.96,0.04686466]
[1762514295906,2.95,153.04,152.96,0.04686466]
[1762514296104,5.8839,153.05,152.98,0.04186985]
[1762514296105,8.07601436,153.03,152.98,0.04186985]
[1762514296304,5.12601436,153.02,152.98,0.04186985]
[1762514296606,2.95,153.03,152.98,0.04186985]
[1762514296803,5.12572955,153.02,152.98,0.04186985]
[1762514297000,2.95,153.06,152.98,0.04186985]
[1762514297300,2.95,153.04,152.98,0.04186985]
[1762514297503,8.07235368,153.03,152.99,0.04301593]
[1762514297700,5.12235368,153.02,152.99,0.04459497]
[1762514297904,2.95,153.03,152.99,0.04459497]
[1762514298099,5.12323558,153.02,152.99,0.04459497]
[1762514298298,2.95,153.03,152.99,0.04459497]
[1762514298501,5.12260429,153.02,152.99,0.04459497]
[1762514298702,8.07153288,153.01,152.99,0.04701062]
[1762514298907,8.07153288,153.0,152.98,0.04265805]
[1762514299206,2.95,153.0,152.97,0.04364844]
[1762514299405,2.95,153.0,152.97,0.04512434]
[1762514299801,5.1221479,152.99,152.97,0.04512434]
[1762514300005,2.95,153.0,152.97,0.04512434]
[1762514300204,5.12218918,152.99,152.97,0.04512434]
[1762514300406,2.95,153.0,152.97,0.04512434]
[1762514300601,2.95,152.98,152.85,2.98]
[1762514300801,1.3,153.0,152.81,10.47289118]
[1762514300802,2.95,152.96,152.81,13.45289118]
[1762514301010,2.95,152.94,152.81,2.98]
[1762514301206,2.95,152.92,152.81,2.98]
[1762514301510,22.24349118,153.01,152.81,2.98]
[1762514301511,2.95,152.9,152.81,2.98]
[1762514301708,2.9982742,152.87,152.84,0.0461944]
[1762514302004,2.9982742,152.87,152.84,0.04397627]
[1762514302005,2.95,152.85,152.84,0.04397627]
[1762514302200,2.95,152.85,152.73,2.98]
[1762514302201,8.842,152.84,152.73,2.98]
[1762514302507,104.12731059,152.95,152.6,91.7904]
[1762514302508,2.95,152.82,152.68,2.98]
[1762514302708,2.95,152.79,152.7,5.897]
[1762514302912,8.06180909,152.78,152.68,2.98]
[1762514303206,0.0479661,152.75,152.71,3.02831846]
[1762514303406,0.04136862,152.75,152.71,3.02535568]
[1762514303611,0.04136862,152.75,152.71,65.02535568]
[1762514303811,0.04136862,152.75,152.71,0.04535568]
[1762514304003,0.04136862,152.75,152.71,4.32535568]
[1762514304306,8.07913071,152.74,152.71,0.04535568]
[1762514304611,5.12920504,152.73,152.71,0.04535568]
[1762514304805,0.04136862,152.75,152.71,3.02535568]
[1762514305315,5.13321987,152.74,152.71,0.04535568]
[1762514305514,5.13321987,152.73,152.71,0.04535568]
[1762514305712,0.04136862,152.75,152.71,0.04535568]
[1762514305910,2.95,152.73,152.71,0.04535568]
[1762514306110,5.1336843,152.72,152.71,0.04535568]
[1762514306508,8.0836843,152.72,152.71,0.04535568]
[1762514307016,5.1336843,152.72,152.71,0.04535568]
[1762514307901,5.13307978,152.72,152.71,0.04535568]
[1762514308112,0.04136862,152.75,152.71,0.04535568]
[1762514308301,5.13217026,152.74,152.71,0.04535568]
[1762514308517,5.13301836,152.73,152.71,0.04535568]
[1762514308708,0.04136862,152.75,152.71,0.04535568]
[1762514308901,5.13269877,152.74,152.71,0.04535568]
[1762514309115,0.04136862,152.75,152.72,2.98]
[1762514309714,0.04136862,152.75,152.73,2.98]
[1762514310313,0.04136862,152.75,152.71,0.04535568]
[1762514310911,2.95,152.73,152.71,0.04535568]
[1762514311212,0.04136862,152.75,152.71,3.02535568]
[1762514311412,0.04136862,152.75,152.71,0.04535568]
[1762514311808,7.93304316,152.74,152.71,0.04535568]
[1762514312109,0.04136862,152.75,152.71,0.04535568]
[1762514313718,2.99136862,152.75,152.71,0.04535568]
[1762514313916,0.04136862,152.75,152.71,0.04535568]
[1762514315616,0.04136862,152.75,152.63,204.57115814]
[1762514315617,2.99136862,152.75,152.63,204.57115814]
[1762514315811,2.95,152.69,152.57,2.98]
[1762514316307,2.95,152.69,152.57,8.8819]
[1762514316703,0.0414481,152.65,152.61,0.04982747]
[1762514318410,2.9914481,152.65,152.61,0.04982747]
[1762514319007,2.95,152.62,152.61,0.04982747]
[1762514319612,3.13,152.61,152.48,3.29]
[1762514319911,3.13,152.61,152.48,78.01]
[1762514320216,3.13,152.61,152.51,3.29]
[1762514320414,3.13,152.61,152.48,74.72]
[1762514320617,5.9022,152.58,152.48,74.72]
[1762514320813,0.04726115,152.55,152.51,0.04677796]
[1762514321017,0.04726115,152.55,152.51,0.0419488]
[1762514321518,0.04726115,152.55,152.51,3.3319488]
[1762514321720,0.04726115,152.55,152.53,9.1934]
[1762514321915,3.13,152.65,152.54,3.29]
[1762514322511,3.13,152.63,152.52,62.0]
[1762514322821,0.04321018,152.59,152.56,0.05020586]
[1762514323009,3.17132744,152.59,152.56,0.04853477]
[1762514323916,3.13,152.58,152.56,0.04853477]
[1762514324618,3.23,152.57,152.45,77.52]
[1762514325019,3.23,152.54,152.45,77.52]
[1762514325421,3.23,152.54,152.45,74.52]
[1762514325617,3.27401,152.51,152.48,0.04819355]
[1762514325810,3.27936585,152.51,152.48,0.04534754]
[1762514326120,3.23,152.48,152.37,3.0]
[1762514326820,9.1359,152.48,152.37,3.0]
[1762514327018,0.04690466,152.44,152.41,0.04900448]
[1762514328311,0.04690466,152.44,152.41,3.04900448]
[1762514328720,0.04690466,152.44,152.41,0.04900448]
[1762514328925,3.27690466,152.44,152.41,0.04900448]
[1762514329719,0.04690466,152.44,152.41,0.04900448]
[1762514329924,3.27690466,152.44,152.41,0.04900448]
[1762514330220,0.04690466,152.44,152.41,0.04900448]
[1762514330924,3.27690466,152.44,152.41,0.04900448]
[1762514331124,3.23,152.42,152.41,0.04900448]
[1762514331820,0.04690466,152.44,152.32,3.0]
[1762514332121,0.04690466,152.44,152.31,285.52141472]
[1762514332122,3.23,152.51,152.42,3.0]
[1762514332319,11.50712527,152.59,152.43,3.0]
[1762514332320,3.23,152.55,152.43,3.0]
[1762514332724,0.04689636,152.51,152.47,0.04296211]
[1762514333313,3.27689636,152.51,152.47,0.04296211]
[1762514335626,3.27689636,152.51,152.38,62.0]
[1762514335825,5.9054,152.49,152.38,3.0]
[1762514336226,3.23,152.48,152.38,3.0]
[1762514336725,6.6371363,152.56,152.37,74.24]
[1762514336726,3.2785768,152.45,152.41,0.04988422]
[1762514336914,3.27558481,152.45,152.41,0.04858018]
[1762514337121,0.04558481,152.45,152.41,3.04858018]
[1762514337522,3.27558481,152.45,152.41,0.04858018]
[1762514338129,3.23,152.43,152.3,3.0]
[1762514338730,3.23,152.43,152.32,3.0]
[1762514339022,0.04445741,152.39,152.36,0.05029681]
[1762514340133,3.23,152.48,152.37,3.0]
[1762514340322,3.23,152.48,152.32,3.0]
[1762514340724,3.23,152.39,152.28,3.0]
[1762514340931,91.8476,152.52,152.32,3.0]
[1762514340932,3.23,152.48,152.32,3.0]
[1762514341233,3.2736677,152.42,152.38,0.04781105]
[1762514341426,3.27943435,152.42,152.38,0.04280164]
[1762514342132,3.23,152.39,152.38,0.04280164]
[1762514342428,3.23,152.39,152.27,9.6371363]
[1762514342623,9.1398,152.38,152.28,5.9132]
[1762514342825,3.23,152.38,152.27,3.0]
[1762514343133,3.23,152.44,152.28,3.0]
[1762514343432,3.23,152.44,152.34,3.0]
[1762514343632,0.04821478,152.38,152.36,3.0]
[1762514343820,3.23,152.48,152.37,0.04422965]
[1762514344021,3.23,152.48,152.36,3.0]
[1762514344234,5.9067,152.46,152.36,8.9101]
[1762514344429,3.23,152.46,152.36,8.9101]
[1762514344629,3.23,152.46,152.36,3.0]
[1762514344827,69.5253,152.56,152.39,0.04672335]
[1762514344828,3.27499739,152.43,152.39,0.04672335]
[1762514345032,3.27204019,152.43,152.39,0.04988371]
[1762514345537,3.23,152.4,152.39,0.04988371]
[1762514345724,4.55,152.4,152.3,74.24]
[1762514346043,3.23,152.4,152.31,3.0]
[1762514346234,3.23,152.4,152.3,74.24]
[1762514346437,3.23,152.39,152.3,74.24]
[1762514346635,3.27550326,152.36,152.33,0.04538093]
[1762514346836,3.2736002,152.36,152.33,0.04536131]
[1762514347738,3.2736002,152.36,152.26,3.0]
[1762514348036,3.2736002,152.36,152.26,65.0]
[1762514348037,9.1406,152.36,152.26,65.0]
[1762514348232,3.23,152.36,152.26,65.0]
[1762514348433,3.23,152.36,152.22,3.0]
[1762514348641,5.9113,152.34,152.22,3.0]
[1762514348834,0.04407294,152.31,152.27,0.04191045]
[1762514349033,0.04407294,152.31,152.27,3.04191045]
[1762514349341,0.04407294,152.31,152.29,3.0]
[1762514349538,0.04407294,152.31,152.27,0.04191045]
[1762514350227,3.27407294,152.31,152.27,0.04191045]
[1762514350430,0.04407294,152.31,152.27,0.04191045]
[1762514350840,0.04407294,152.31,152.27,3.04191045]
[1762514351135,3.23,152.4,152.28,3.0]
[1762514351338,3.23,152.4,152.29,65.0]
[1762514351534,5.9101,152.37,152.29,65.0]
[1762514351740,5.9101,152.37,152.29,3.0]
[1762514352138,3.23,152.4,152.29,3.0]
[1762514352341,0.04637445,152.36,152.33,0.04590812]
[1762514352541,0.04637445,152.36,152.33,3.04590812]
[1762514353141,3.23,152.48,152.35,3.0]
[1762514353434,3.23,152.46,152.35,3.0]
[1762514353639,12.50219788,152.55,152.26,3.0]
[1762514353640,3.23,152.4,152.26,3.0]
[1762514353838,8.14447074,152.44,152.3,3.0]
[1762514354044,0.04295752,152.39,152.35,3.04544675]
[1762514354247,3.13,152.48,152.37,3.06]
[1762514354736,3.13,152.47,152.38,5.9093]
[1762514355142,3.13,152.47,152.37,3.06]
[1762514355338,3.13,152.46,152.4,0.04374593]
[1762514355541,3.17526539,152.44,152.4,0.04374593]
[1762514355844,3.17503023,152.44,152.4,0.04936328]
[1762514356041,0.04503023,152.44,152.4,0.04936328]
[1762514357437,0.04503023,152.44,152.4,3.10936328]
[1762514358435,0.04503023,152.44,152.41,3.06]
[1762514359042,0.04503023,152.44,152.4,62.04936328]
[1762514359043,0.04503023,152.44,152.4,0.04936328]
[1762514359437,3.17503023,152.44,152.4,0.04936328]
[1762514359633,0.04503023,152.44,152.4,0.04936328]
[1762514359840,0.04503023,152.44,152.4,3.10936328]
[1762514360345,8.09995701,152.43,152.4,0.04936328]
[1762514360552,3.13,152.43,152.4,0.04936328]
[1762514360838,0.04503023,152.44,152.4,3.10936328]
[1762514361242,0.04503023,152.44,152.41,3.06]
[1762514361848,3.17503023,152.44,152.4,0.04936328]
[1762514362037,0.04503023,152.44,152.4,0.04936328]
[1762514362845,3.17503023,152.44,152.4,0.04936328]
[1762514363448,3.13,152.42,152.4,0.04936328]
[1762514364344,9.65569362,152.41,152.31,3.06]
[1762514364538,3.13,152.39,152.31,3.06]
[1762514364743,9.0402,152.37,152.29,5.9129]
[1762514364950,8.99506158,152.41,152.3,3.06]
[1762514365154,9.65541851,152.4,152.3,3.06]
[1762514365345,0.04729777,152.37,152.34,3.06]
[1762514365547,0.04320449,152.37,152.34,3.1025884]
[1762514366448,0.04320449,152.37,152.34,0.0425884]
[1762514366947,5.9063,152.47,152.34,3.1025884]
[1762514367152,12.79888999,152.46,152.34,3.06]
[1762514367359,9.66888999,152.45,152.34,3.06]
[1762514367645,4.78427744,152.44,152.34,3.06]
[1762514367851,3.13,152.42,152.32,73.6]
[1762514368048,18.71272203,152.41,152.32,79.5117]
[1762514368252,3.17136531,152.39,152.35,0.04668531]
[1762514368438,4.78427744,152.38,152.35,3.10668531]
[1762514368647,0.04136531,152.39,152.36,8.9701]
[1762514368846,5.86506158,152.48,152.36,3.06]
[1762514369049,3.13,152.46,152.36,3.06]
[1762514369246,3.13,152.44,152.32,76.66]
[1762514369452,12.82125668,152.43,152.33,62.0]
[1762514369753,3.13,152.41,152.32,76.66]
[1762514369953,0.04472205,152.38,152.35,0.04765311]
[1762514370248,5.86506158,152.44,152.35,3.10224386]
[1762514370449,16.04828877,152.52,152.35,3.10224386]
[1762514370450,3.13,152.56,152.44,3.06]
[1762514370751,4.04632859,152.68,152.48,3.06]
[1762514370752,3.13,152.61,152.48,3.06]
[1762514370950,4.87338385,152.6,152.48,3.06]
[1762514371155,4.87338385,152.59,152.52,3.06]
[1762514371450,3.13,152.56,152.44,3.06]
[1762514371648,7.99718632,152.61,152.44,3.06]
[1762514371850,3.13,152.6,152.47,7.10632859]
[1762514372352,0.0489697,152.55,152.52,0.04864973]
[1762514372545,0.0489697,152.55,152.52,3.10864973]
[1762514372751,4.82284761,152.65,152.52,4.42864973]
[1762514372956,16.04828877,152.74,152.57,3.06]
[1762514372957,3.13,152.68,152.57,3.06]
[1762514374057,0.04157851,152.64,152.61,0.04151553]
[1762514374354,0.04157851,152.64,152.61,3.10151553]
[1762514375050,3.13,152.72,152.63,7.10632859]
[1762514375445,4.80960333,152.8,152.63,7.10632859]
[1762514375446,3.13,152.76,152.64,3.06]
[1762514375649,3.13,152.76,152.66,5.8983]
[1762514375847,3.13,152.76,152.65,4.04632859]
[1762514376045,0.04494864,152.72,152.69,0.04945488]
[1762514376753,3.17494864,152.72,152.69,0.04945488]
[1762514378148,0.04494864,152.72,152.69,0.04945488]
[1762514378353,3.17494864,152.72,152.69,0.04945488]
[1762514379563,3.17494864,152.72,152.53,19.35950301]
[1762514379564,3.18,152.69,152.58,4.04632859]
[1762514379858,3.18,152.77,152.68,3.27]
[1762514380253,3.18,152.77,152.65,4.04632859]
[1762514380455,3.18,152.77,152.66,3.27]
[1762514380659,0.04177336,152.73,152.69,3.31261871]
[1762514380859,3.18,152.85,152.7,3.27]
[1762514381052,3.18,152.91,152.79,9.1636]
[1762514381363,3.18,152.91,152.8,3.27]
[1762514381953,3.18,152.91,152.84,0.0480209]
[1762514381954,0.04151906,152.87,152.84,0.0480209]
[1762514383570,3.22151906,152.87,152.84,0.0480209]
[1762514383865,3.22151906,152.87,152.76,4.04632859]
[1762514384160,3.18,152.87,152.76,7.31632859]
[1762514384559,3.18,152.87,152.77,2.95]
[1762514384754,3.18,152.87,152.78,2.95]
[1762514384960,0.04896088,152.84,152.81,2.99877351]
[1762514385160,0.04907879,152.84,152.81,2.99356621]
[1762514385360,0.04907879,152.84,152.81,0.04356621]
[1762514385958,3.14907879,152.84,152.81,0.04356621]
[1762514386259,4.4,152.83,152.72,2.95]
[1762514386564,630.7746,152.96,152.73,2.95]
[1762514386770,5.8923,152.83,152.73,2.95]
[1762514387063,3.15012827,152.8,152.76,0.0478228]
[1762514387262,0.05033906,152.8,152.76,0.0480816]
[1762514387662,0.05033906,152.8,152.76,2.9980816]
[1762514387865,0.05033906,152.8,152.76,0.0480816]
[1762514388267,3.15033906,152.8,152.76,0.0480816]
[1762514389068,0.05033906,152.8,152.76,2.9980816]
[1762514389568,0.05033906,152.8,152.76,0.0480816]
[1762514390073,3.15033906,152.8,152.76,0.0480816]